Cogmind - Beta 15 @@@ ROGUE MODE // 2025.10.07 @ 09:30:08 Player: rapskalian Result: Destroyed by 7C-UZ2(j) with Overtuned Pulse Rifle Performance ------------- Evolutions (0) 0 Regions Visited (3) 600 Robots Destroyed (13) 65 Value Destroyed (406) 406 Prototype IDs (8) 160 Alien Tech Used (0) 0 Bonus (771) 771 TOTAL SCORE: 2002 Bonus ------- Registered with UFD 300 Met Optimus in HQ 500 Friendly Fire -29 Cogmind --------- Core Integrity 0/250 Matter 292/300 Energy 290/290 System Corruption 0% Temperature Cool (45) Movement Walking (190) Ox1 Location -8/Scraptown Parts ------- > --- POWER (1) -------- Improved Deuterium Engine > --- PROPULSION (2) --- Titanium Leg VSS Leg > --- UTILITY (2) ------ Large Storage Unit Makeshift Salvage Targeting Computer > --- WEAPON (2) ------- Enhanced Autogun Gauss Rifle > --- INVENTORY (15) --- Light Deuterium Engine Improved Deuterium Engine Scrap Suit Visual Processing Unit Seismic Detector 0b10 Decoder Chip [Generic] Core Analyzer Makeshift Light Armor Plating Makeshift Hacking Suite Small Laser CPS Tube (2) Peak State ------------ > --- POWER ------------ Makeshift Power Source > --- PROPULSION ------- Makeshift Leg Makeshift Leg > --- UTILITY ---------- Large Storage Unit Improved Propulsion Shielding > --- WEAPON ----------- Junk Cannon > --- INVENTORY -------- Ion Engine Aluminum Leg Titanium Leg Overtuned Titanium Leg Overtuned Titanium Leg Scrap Suit Visual Processing Unit Seismic Detector Makeshift Salvage Targeting Computer Core Analyzer Small Laser Overtuned Barrage Gun CPS Tube CPS Tube [Rating: 32] Favorites ----------- Power Makeshift Power Source Engine Makeshift Power Source Propulsion Makeshift Leg Leg Makeshift Leg Utility Seismic Detector Device Seismic Detector Storage Small Storage Unit Processor Makeshift Salvage Targeting Computer Protection Improved Propulsion Shielding Weapon Assault Rifle Energy Gun EM Pulse Gun Ballistic Gun Assault Rifle Special Weapon Junk Cannon Build | -11 -10 -10 -8 ------- Run | Yrd Mat Sub Scr Slots Evolved . | . . . . Power . | . . . . Propulsion . | . . . . Utility . | . . . . Weapon . | . . . . Parts Attached 31 | 7 . 3 21 Power 6 | 1 . 1 4 Engine 6 | 1 . 1 4 Core . | . . . . Reactor . | . . . . Propulsion 10 | 2 . 2 6 Treads . | . . . . Leg 10 | 2 . 2 6 Wheel . | . . . . Hover . | . . . . Flight . | . . . . Utility 6 | 2 . . 4 Device 1 | 1 . . . Storage 3 | 1 . . 2 Processor 1 | . . . 1 Hackware . | . . . . Protection 1 | . . . 1 Artifact . | . . . . Weapon 9 | 2 . . 7 Energy Gun 4 | 1 . . 3 Energy Cannon . | . . . . Ballistic Gun 4 | 1 . . 3 Ballistic Cannon . | . . . . Launcher . | . . . . Special Weapon 1 | . . . 1 Impact Weapon . | . . . . Slashing Weapon . | . . . . Piercing Weapon . | . . . . Special Melee Weapon . | . . . . Unidentified Prototypes 2 | . . . 2 Parts Lost 5 | . . . 5 Power 2 | . . . 2 Propulsion 2 | . . . 2 Utility 1 | . . . 1 Weapon . | . . . . Highest Loss Streak 2 | . . . 2 To Critical Strikes . | . . . . Average Backups 9 | 4 6 7 9 Power 1 | . 1 1 1 Propulsion 3 | 3 4 4 2 Utility 3 | . . 1 3 Weapon . | . 1 1 1 Tool/Special . | . . . . Unused Backups 17 | . . 1 16 Power 1 | . . . 1 Propulsion 8 | . . 1 7 Utility 6 | . . . 6 Weapon . | . . . . Tool/Special 2 | . . . 2 Average Slot Usage (%) 96 | . 100 100 95 Engine 13 | . 14 14 13 Leg 27 | . 28 28 27 Device 9 | . 14 14 8 Storage 14 | . 14 14 14 Processor 4 | . . . 4 Energy Gun 8 | . 14 14 7 Ballistic Gun 13 | . 14 14 13 Special Weapon 3 | . . . 3 Peak Build Rating 32 | 7 7 16 32 Average Rating 19 | 4 7 8 22 On Entrance 7 | . 7 7 16 Naked Turns . | . . . . Heaviest Build 40 | 13 13 14 40 Greatest Support 40 | 20 20 40 40 Greatest Overweight (x) 2 | . . . 2 Average Overweight (x) . | . . . . Largest Inventory Capacity 15 | 8 8 8 15 Average Capacity 11 | 7 8 8 11 Most Carried 15 | 6 7 8 15 Average Carried 9 | 4 6 7 10 Final Capacity 15 | 8 8 8 15 Final Carried 12 | 6 7 8 12 Class Distribution -------------------- 80% | Scavenger-Mutant 16% | Mutant Dominant Class ---------------- Mutant | -10/Materials Mutant | -10/Subcaves Scavenger-Mutant | -8/Scraptown Resources | -11 -10 -10 -8 ----------- Run | Yrd Mat Sub Scr Matter Collected 668 | 285 . 40 343 Remotely . | . . . . Salvage Created 757 | 111 . . 646 Parts 43 | 10 . . 33 Haulers Intercepted . | . . . . Recyclers Shooed . | . . . . Parts Field Recycled . | . . . . Retrieved Matter . | . . . . Parts Self-Destructed 1 | . . . 1 Prevented . | . . . . Kills | -11 -10 -10 -8 ------- Run | Yrd Mat Sub Scr Combat Hostiles Destroyed 10 | . . . 10 Guns 7 | . . . 7 Cannons 2 | . . . 2 Classes Destroyed 6 | 2 . . 4 Tunneler 2 | 2 . . . Recycler 1 | 1 . . . Bolteater 2 | . . . 2 Federalist 1 | . . . 1 Explorer 1 | . . . 1 Scrapper 6 | . . . 6 Best Kill Streak 3 | 3 . . 2 Combat Bots Only 2 | . . . 2 Max Kills in Single Turn 1 | 1 . . 1 Gunslinging . | . . . . Exploded . | . . . . Melee . | . . . . Uniques/NPCs Destroyed . | . . . . Combat | -11 -10 -10 -8 -------- Run | Yrd Mat Sub Scr Hostile Shots Fired 89 | . . . 89 Missed 21 | . . . 21 Hits 68 | . . . 68 Melee 3 | . . . 3 Projectile 65 | . . . 65 Critical Strikes 2 | . . . 2 Damage Taken 1220 | . . . 1220 Core 256 | . . . 256 Absorbed by Shields . | . . . . Redirected to Shielding 87 | . . . 87 Regen/Repaired (Parts) 48 | . . . 48 Core Remaining (%) 100 | 100 . . . Volleys Fired 50 | 5 . . 45 Largest 2 | 2 . . 2 Hottest 120 | 60 . . 120 Shots Fired 74 | 9 . . 65 Gun 66 | 9 . . 57 Cannon . | . . . . Launcher . | . . . . Special 8 | . . . 8 Kinetic 34 | 5 . . 29 Thermal 28 | . . . 28 Explosive . | . . . . Electromagnetic 4 | 4 . . . Impact 8 | . . . 8 Robot Hit Streak 10 | 3 . . 10 Robot Miss Streak 5 | 1 . . 5 Penetration Max . | . . . . Secondary Targets . | . . . . Shots Hit Robots 49 | 5 . . 44 Core Hits 21 | 4 . . 17 Critical Kills 1 | . . . 1 Critical Parts Destroyed 1 | . . . 1 Critical Strikes 2 | . . . 2 Destroy 2 | . . . 2 Melee Attacks . | . . . . Impact . | . . . . Slashing . | . . . . Piercing . | . . . . Sneak Attacks . | . . . . Combat Hostiles . | . . . . Follow-up Attacks . | . . . . Damage Inflicted 1129 | 61 . . 1068 Guns 632 | 61 . . 571 Cannons . | . . . . Explosions . | . . . . Melee . | . . . . Ramming . | . . . . Kinetic 414 | 61 . . 353 Thermal 218 | . . . 218 Explosive . | . . . . Electromagnetic . | . . . . Impact 497 | . . . 497 Slashing . | . . . . Piercing . | . . . . Highest Corruption . | . . . . Average Corruption . | . . . . Corruption Purged . | . . . . Corruption Blocked . | . . . . Overload Shots . | . . . . Overflow Damage 65 | . . . 65 Projectiles 65 | . . . 65 Explosions . | . . . . Melee . | . . . . Knockbacks 6 | . . . 6 Impact 5 | . . . 5 Kinetic . | . . . . Secondary 1 | . . . 1 Self-Inflicted Damage . | . . . . Shots . | . . . . Rammed . | . . . . Targets Rammed . | . . . . Kicked . | . . . . Crushed . | . . . . Highest Temperature 190 | . . . 190 Average Temperature 47 | . . . 47 Received Heat Transfer 698 | . . . 698 Siege Activations . | . . . . Martial Activations . | . . . . Shielding Activations . | . . . . Robots Disrupted . | . . . . Combat Hostiles . | . . . . Robots Corrupted . | . . . . Combat Hostiles . | . . . . Parts Fried . | . . . . Impact Corruptions 1 | . . . 1 Robots Melted 1 | . . . 1 Combat Hostiles 1 | . . . 1 Parts Melted 5 | . . . 5 Heat Transferred 160 | . . . 160 Parts Sabotaged . | . . . . Parts Stolen . | . . . . Parts Stripped . | . . . . Power Chain Reactions . | . . . . Alert | -11 -10 -10 -8 ------- Run | Yrd Mat Sub Scr Maximum Alert Level . | . . . . Low Security (%) 100 | 100 100 . . Level 1 . | . . . . Level 2 . | . . . . Level 3 . | . . . . Level 4 . | . . . . Level 5 . | . . . . High Security . | . . . . Max Security . | . . . . Peak Influence 10 | 10 . . . Initial . | . . . . Average . | 1 . . . Influence Increases 15 | 15 . . . Destroy 0b10 Robot/NC 15 | 15 . . . Influence Decreases 15 | 15 . . . Time Decay 15 | 15 . . . Squads Dispatched . | . . . . Investigation . | . . . . Extermination . | . . . . Reinforcement . | . . . . Assault . | . . . . Garrison . | . . . . Intercept . | . . . . Searches Triggered . | . . . . Construction Impeded . | . . . . Haulers Reinforced . | . . . . Active Scanning Responses . | . . . . Cargo Convoy Interrupts . | . . . . Stealth | -11 -10 -10 -8 --------- Run | Yrd Mat Sub Scr Distress Signals . | . . . . Communications Jammed . | . . . . Distress Signals . | . . . . Times Spotted 27 | . 1 . 26 Peak Tracking Total 4 | . 1 . 4 Tactical Retreats . | . . . . Traps | -11 -10 -10 -8 ------- Run | Yrd Mat Sub Scr Traps Triggered . | . . . . Indirectly . | . . . . Trap Hack Attempts . | . . . . Triggered . | . . . . Disarmed . | . . . . Reprogrammed . | . . . . Reused . | . . . . Traps Extracted . | . . . . Installed . | . . . . Triggered . | . . . . Machines | -11 -10 -10 -8 ---------- Run | Yrd Mat Sub Scr Machines Disabled 2 | . . . 2 Max in Single Turn 1 | . . . 1 Machines Repaired . | . . . . Machines Dismantled . | . . . . Machines Sabotaged . | . . . . Overloaded Fab Kills . | . . . . Hacking | -11 -10 -10 -8 --------- Run | Yrd Mat Sub Scr Machines Accessed 4 | . . . 4 Terminals . | . . . . Fabricators . | . . . . Repair Stations . | . . . . Recycling Units . | . . . . Scanalyzers . | . . . . Garrison Access . | . . . . Total Hacks 33 | . . . 33 Successful 33 | . . . 33 Failed . | . . . . Catastrophic . | . . . . Database Lockouts . | . . . . Manual 1 | . . . 1 Terminals . | . . . . Fabricators . | . . . . Repair Stations . | . . . . Recycling Units . | . . . . Scanalyzers . | . . . . Garrison Access . | . . . . Terminal Hacks 33 | . . . 33 Record 25 | . . . 25 Robot Analysis 8 | . . . 8 Fabricator Hacks . | . . . . Repair Station Hacks . | . . . . Recycling Unit Hacks . | . . . . Scanalyzer . | . . . . Garrison Access Hacks . | . . . . Unauthorized Hacks . | . . . . Terminals . | . . . . Fabricators . | . . . . Repair Stations . | . . . . Recycling Units . | . . . . Scanalyzers . | . . . . Garrison Access . | . . . . Data Cores Recovered . | . . . . Used . | . . . . Hacking Detections . | . . . . Full Trace Events . | . . . . Feedback Events . | . . . . Feedback Blocked . | . . . . Robot Schematics Acquired . | . . . . Robots Built . | . . . . Authchips . | . . . . Time . | . . . . Total Robot Build Rating . | . . . . Part Schematics Acquired . | . . . . Parts Built . | . . . . Authchips . | . . . . Time . | . . . . Total Part Build Rating . | . . . . Parts Repaired . | . . . . Time . | . . . . Parts Recycled . | . . . . Recycled Matter . | . . . . Retrieved Matter . | . . . . Retrieved Components . | . . . . Parts Scanalyzed . | . . . . Part Schematics Acquired . | . . . . Parts Damaged . | . . . . Bothacking | -11 -10 -10 -8 ------------ Run | Yrd Mat Sub Scr Used RIF Installer . | . . . . Robots Hacked . | . . . . Non-combat . | . . . . Combat . | . . . . Robot Hacks Applied . | . . . . Relay Couplers Released . | . . . . Fabnet Peak Effective % . | . . . . Robots Rewired . | . . . . Allies Hacked . | . . . . Hacks Repelled . | . . . . Allies | -11 -10 -10 -8 -------- Run | Yrd Mat Sub Scr Total Allies . | . . . . Largest Group . | . . . . Highest-Rated Group . | . . . . Highest-Rated Ally . | . . . . Total Orders . | . . . . Ally Attacks . | . . . . Total Damage . | . . . . Kills . | . . . . Allies Corrupted . | . . . . Allies Melted 5 | . . . 5 Intel | -11 -10 -10 -8 ------- Run | Yrd Mat Sub Scr Active Infowar (turns) 1669 | 17 67 298 1287 Seismic 1669 | 17 67 298 1287 Robot Analysis Total 8 | . . . 8 Derelict Logs Recovered . | . . . . Drone Launches . | . . . . Drone Recoveries . | . . . . Exploration | -11 -10 -10 -8 ------------- Run | Yrd Mat Sub Scr Turns Passed 2577 | 95 67 298 2117 Spaces Moved 1594 | 59 50 166 1319 Core 9 | 9 . . . Treads . | . . . . Legs 1585 | 50 50 166 1319 Wheels . | . . . . Hover . | . . . . Flight . | . . . . Fastest Speed 50 | 50 120 120 100 Average Speed 133 | 109 120 121 137 Slowest Speed 270 | 120 120 140 270 Overloaded Moves . | . . . . Propulsion Burnouts . | . . . . Robots Hopped . | . . . . Potential Cave-ins . | . . . . Cave-ins Triggered . | . . . . Exploration Rate (%) 27 | 4 12 20 74 Regions Visited 3 Branch Regions 2 Pre-discovered Areas . | . . . . Known Exits Taken . | . . . . Unknown Exits Taken 3 | 1 1 1 . Scrap Searched 1 | . . . 1 Spaces Dug . | . . . . Terrain Destroyed 1 | . . . 1 Melee . | . . . . Projectile 1 | . . . 1 AOE . | . . . . Terrain Rammed . | . . . . Walls Destroyed . | . . . . Machines Disabled . | . . . . Actions | -11 -10 -10 -8 --------- Run | Yrd Mat Sub Scr Total 1971 | 77 57 264 1573 Wait 235 | 1 7 89 138 Move 1591 | 58 49 165 1319 Hop . | . . . . Pick Up 27 | 6 1 1 19 Fast Attach 15 | 7 . 3 5 Attach 7 | . . . 7 Detach 4 | . . 1 3 Swap 14 | . . 1 13 Drop 28 | . . 4 24 Fire 50 | 5 . . 45 Melee . | . . . . Ram . | . . . . Kick . | . . . . Crush . | . . . . Escape Stasis . | . . . . Rewire . | . . . . Trap . | . . . . Miscellaneous . | . . . . Route ------- -11/Scrapyard -10/Materials -10/Subcaves -8/Scraptown (discovered 2 exits: [*Fac x2]) History --------- Turn | Location | Event 11 | -11/Scrapyard | Discovered new exit (range 16) 96 | -11/Scrapyard | Entered Materials 97 | -10/Materials | Met a group of wandering Federalists 137 | -10/Materials | Discovered new exit (range 10) 163 | -10/Materials | Entered Subcaves 163 | -10/Subcaves | Accompanied by 3 allies 164 | -10/Subcaves | Continued accompanying wandering Federalists (5) 164 | -10/Subcaves | Approached by a straggling Scientist 238 | -10/Subcaves | A swath of the cavern ceiling suddenly collapsed 309 | -10/Subcaves | Build established: Mutant 420 | -10/Subcaves | Wandering Federalist uncovered a shortcut to Scraptown 461 | -10/Subcaves | Entered Scraptown 721 | -8/Scraptown | Build established: Scavenger-Mutant 753 | -8/Scraptown | Discovered new exit (range 5) 919 | -8/Scraptown | Visited Assassins FH 969 | -8/Scraptown | Visited The Evicted 1058 | -8/Scraptown | Visited CR-KLE's Repair Center 1068 | -8/Scraptown | CR-KLE repaired 4 parts 1122 | -8/Scraptown | Visited Fellowship of the Rings 1175 | -8/Scraptown | Visited UFD Registry 1175 | -8/Scraptown | Registered with UFD as "Gunthruster" 1213 | -8/Scraptown | Visited Science Testing Area 1238 | -8/Scraptown | Visited Analyses Database 1276 | -8/Scraptown | Visited Junk Cannon Lab 1289 | -8/Scraptown | Found Prototype Special Weapon 1289 | -8/Scraptown | Identified Junk Cannon 1333 | -8/Scraptown | Visited Curators Association 1625 | -8/Scraptown | Met Optimus 1625 | -8/Scraptown | Accepted into 0bPrime 1714 | -8/Scraptown | Civil war broke out across Scraptown 1750 | -8/Scraptown | Found Scrap Suit 1769 | -8/Scraptown | Visited DA-N13 Charitable Foundation 1776 | -8/Scraptown | Lost 5 allies 1861 | -8/Scraptown | Lost 4 allies 1948 | -8/Scraptown | Lost 7 allies 1984 | -8/Scraptown | Core integrity fell below 50% 2119 | -8/Scraptown | Lost 3 allies 2121 | -8/Scraptown | Visited Infowarlord's Domain 2160 | -8/Scraptown | Visited Observation Area 2319 | -8/Scraptown | Optimus destroyed in the chaos of civil war 2403 | -8/Scraptown | Lost 7 allies 2544 | -8/Scraptown | Discovered new exit (range 11) 2567 | -8/Scraptown | Core integrity fell below 20% 2578 | -8/Scraptown | Destroyed by 7C-UZ2(j) with Overtuned Pulse Rifle Last Messages --------------- 02506_ RO-I1L(x) destroyed. 02507_ VE-R1Q(j) destroyed. 02510_ G1-OBW(j) cannibalizes Ovr. Titanium Leg to repair Ovr. Titanium Leg. 02519_ Acquired 16 matter. 02521_ G1-OBW(j) cannibalizes Ion Engine to repair Lgt. Deuterium Engine. 02544_ EXIT=FOUND 02552_ Acquired 8 matter. 02554_ 51-P3E(g) destroyed. 02555_ Acquired 8 matter. 02555_ Mak. Leg destroyed. 02557_ Acquired 8 matter. 02559_ Slug penetrates P3-823(j). 02559_ P3-823(j) suffers critical hit (Destroy). 02559_ Lgt. Deuterium Engine melted. 02559_ Ovr. Pulse Rifle melted. 02559_ P3-823(j) destroyed. 02560_ Acquired 8 matter. 02570_ Acquired 10 matter. 02578_ Critical hit (Burn: +50). Map ----- +----------------------------------------------------+ | | | | | | | ?????????????????????????????????????????????????? | | ?????????????????????????????????????????????????? | | ?????????????????????????????????????????????????? | | ?????????????????????????????????????????????????? | | ?????????????????????????????????????????????????? | | ?????????????????????????????????????????????????? | | ?????????????????????????????????????????????????? | | ?????????????????????????????????????????????????? | | ?????????????????????????????????????????????????? | | ?????????????????????????????????????????????????? | | ?????????????????????????????????????????????????? | | ?????????????????????????????????????????????????? | | ???????????????????????????????##?""#????????????? | | ???????????????????????########%#"%"#????????????? | | ??????????????????????##%=;[!==!![<*##???????????? | | ???????????""|##!!"####*=%!!==![%!%%!#???????????? | | ????????? =[%[%*&%=%[==!!!![%%/[!%%=!#???????????? | | ????????? =%====!!*%![=!%!%!%!%!%[=!#???????????? | | ???????????############%!p %![*![#####???????????? | | ??????????????????????##!j########???????????????? | | ???????????????????????#%%#?#????????????????????? | | ???????????????????????#%/#""????????????????????? | | ???????????????????????#=@#" ????????????????????? | | ???????????????????????#*%#" "???????????????????? | | ???????????????????????#!!#" "???????????????????? | | ???????????????????????#*[#" "???????????????????? | | ???????????????????????#j!#" "??????#????????????? | | ???????????????????????#[%#" "?????"#????????????? | | ???????????????????????# !#" """"" "#????????????? | | ???????????????????????# %#" ! "#????????????? | | ???????????????????????#%=#" =![%* #????????????? | | ???????????????????????#![#!=%! = #????????????? | | ?????????????????# ????#j!!#!########????????????? | | ?????? ??######### #####==*#%##??????????????????? | | ??"""" !%![*!%! " ""=!*[%!*%*#??????????????????? | | %!=%[/=% ! =[!%!!!![#??????????????????? | | !=!=!=!==! [ !!%![=[###########????????? | | !=!*! [!% = =!!=%!!%==## #????????? | | ==%! !% !==!*%%*!"##= #????????? | | =*= !!=!==!=!!=%=|[%* #????????? | | "" """""" """""""""""!=![*%[##! #????????? | | ??"""""""???"""""""""""!%![!!"## #????????? | | #### ######?#########""!!=!*"###########????????? | | ####??????#"[!%!== #########??????????? | | X # #??????#""[!!%["## #??????????? | | "" ""[= #"#???????#""=![!* ## $ ##?????????? | | "" "!%X ##########"=*%!*!=#" "#?????????? | +----------------------------------------------------+ Best States ------------- Heat Dissipation 25 Energy Generation 16 Energy Capacity 290 Matter Stores 300 Matter Capacity 300 Sight Range 16 Terrain Scan Density 10 Propulsion Shielding 66 Evasion (%) 55 Salvage Targeting 4 Item Schematics ----------------- None Robot Schematics ------------------ None Fabricated ------------ Nothing Repaired ---------- Nothing Alien Tech Used ----------------- None Achievements -------------- Armchair Analyst Librarian Challenges ------------ None Game ------ Seed CloakResetBay Manual? 0 Play Time 00:50:04 Cumulative 21.2 hours Start 2025.10.07 @ 08:34:23 End 2025.10.07 @ 09:30:08 Sessions 1 Manual Loads 0 Difficulty Rogue Special Mode None Game No. 19 Rogue 19 Adventurer 0 Explorer 0 Win Type - Total 0 Types 0/0/0/0/0/0/0/0/0/0 Lore% 7 Gallery% 24 Achievement% 16 Wizard Run 0 Options --------- Layout 0 ASCII 0 Keyboard 1 Movement Numpad Keybinds 0 Fullscreen 1 Font 24/Smallcaps Map View 76x50 Zoom Use 0% Tactical HUD 1 Map Filters NONE Filters NONE Steam 1 RUN: 90f188d7-3427-4d42-a059-537c70e41095